fUST/lending_fUST_20240218
["ID","MTS","AMOUNT","RATE_DAILY","PERIOD"]
[314334129,1708192239318,-610.99,0.00027671,2]
[314334131,1708192239327,-500.0,0.00027671,2]
[314334133,1708192239336,-500.0,0.00027671,2]
[314334135,1708192239345,-500.0,0.00027671,2]
[314334137,1708192239354,-680.39,0.00027671,2]
[314334139,1708192239363,-578.0,0.00027671,2]
[314334141,1708192239372,-635.23390049,0.00027671,2]
[314334143,1708192239381,-4036.34,0.00027671,2]
[314334145,1708192239390,-500.0,0.00027671,2]
[314334147,1708192239399,-3330.77,0.00027671,2]
[314334148,1708192239407,-500.0,0.00027671,2]
[314334150,1708192239416,-7257.13,0.00027671,2]
[314334153,1708192239426,-1166.28,0.00027671,2]
[314334155,1708192239435,-507.67,0.00027671,2]
[314334157,1708192239444,-1162.8,0.00027671,2]
[314334159,1708192239453,-1402.44,0.00027671,2]
[314334161,1708192239462,-843.28,0.00027671,2]
[314334163,1708192239471,-639.03,0.00027671,2]
[314334165,1708192239480,-624.83,0.00027671,2]
[314334166,1708192239490,-1000.0,0.00027671,2]
[314334169,1708192239499,-500.0,0.00027671,2]
[314334170,1708192239508,-5756.91,0.00027671,2]
[314334173,1708192239517,-524.53,0.00027671,2]
[314334174,1708192239526,-820.43,0.00027671,2]
[314334177,1708192239535,-906.16,0.00027671,2]
[314334179,1708192239545,-1050.23,0.00027671,2]
[314334181,1708192239554,-713.36810926,0.000277,2]
[314334183,1708192239564,-29680.33152701,0.00027754,5]
[314334184,1708192239573,-1280.88,0.00027945,2]
[314334186,1708192239582,-500.0,0.00027945,2]
[314334188,1708192239592,-751.69,0.00027945,2]
[314334190,1708192239601,-754.84,0.00027945,2]
[314334192,1708192239610,-500.0,0.00027945,2]
[314334194,1708192239619,-295.36967243,0.00027945,2]
[314334196,1708192239628,-500.0,0.00027945,2]
[314334198,1708192239638,-500.0,0.00027945,2]
[314334200,1708192239647,-626.1,0.00027945,2]
[314334203,1708192239657,-500.0,0.00027945,2]
[314334205,1708192239666,-500.0,0.00027945,2]
[314334207,1708192239675,-559.23,0.00027945,2]
[314334209,1708192239685,-5005.92,0.00027945,2]
[314334219,1708192239774,-6665.96,0.00027945,2]
[314334221,1708192239783,-4020.42,0.00027945,2]
[314334223,1708192239793,-1172.35,0.00027945,2]
[314334225,1708192239805,-500.0,0.00027945,2]
[314334227,1708192239815,-643.24,0.00027945,2]
[314334229,1708192239824,-610.99,0.00027945,2]
[314334231,1708192239833,-500.0,0.00027945,2]
[314334233,1708192239842,-500.0,0.00027945,2]
[314334235,1708192239851,-500.0,0.00027945,2]
[314334237,1708192239862,-680.39,0.00027945,2]
[314334239,1708192239871,-578.0,0.00027945,2]
[314334241,1708192239881,-4036.34,0.00027945,2]
[314334243,1708192239891,-500.0,0.00027945,2]
[314334245,1708192239900,-3330.77,0.00027945,2]
[314334247,1708192239910,-500.0,0.00027945,2]
[314334249,1708192239919,-7257.13,0.00027945,2]
[314334251,1708192239928,-1166.28,0.00027945,2]
[314334253,1708192239937,-507.67,0.00027945,2]
[314334255,1708192239947,-1162.8,0.00027945,2]
[314334257,1708192239956,-1402.44,0.00027945,2]
[314334259,1708192239965,-843.28,0.00027945,2]
[314334261,1708192239975,-639.03,0.00027945,2]
[314334263,1708192239984,-624.83,0.00027945,2]
[314334265,1708192239993,-1000.0,0.00027945,2]
[314334267,1708192240002,-500.0,0.00027945,2]
[314334269,1708192240011,-5756.91,0.00027945,2]
[314334271,1708192240021,-524.53,0.00027945,2]
[314334273,1708192240030,-820.43,0.00027945,2]
[314334275,1708192240040,-906.16,0.00027945,2]
[314334277,1708192240049,-1050.23,0.00027945,2]
[314334279,1708192240057,-155.00775039,0.000281,2]
[314334281,1708192240067,-300.0,0.00028101,2]
[314334283,1708192240076,-160.88802508,0.00028119,2]
[314334285,1708192240085,-1280.88,0.00028219,2]
[314334287,1708192240095,-500.0,0.00028219,2]
[314334289,1708192240103,-751.69,0.00028219,2]
[314334291,1708192240113,-754.84,0.00028219,2]
[314334293,1708192240123,-500.0,0.00028219,2]
[314334295,1708192240132,-500.0,0.00028219,2]
[314334297,1708192240141,-626.1,0.00028219,2]
[314334299,1708192240150,-500.0,0.00028219,2]
[314334301,1708192240160,-500.0,0.00028219,2]
[314334303,1708192240169,-559.23,0.00028219,2]
[314334305,1708192240178,-5005.92,0.00028219,2]
[314334307,1708192240187,-6665.96,0.00028219,2]
[314334309,1708192240196,-4020.42,0.00028219,2]
[314334311,1708192240205,-1172.35,0.00028219,2]
[314334313,1708192240217,-500.0,0.00028219,2]
[314334316,1708192240226,-610.99,0.00028219,2]
[314334317,1708192240235,-500.0,0.00028219,2]
[314334319,1708192240245,-500.0,0.00028219,2]
[314334321,1708192240254,-500.0,0.00028219,2]
[314334323,1708192240263,-680.39,0.00028219,2]
[314334325,1708192240273,-578.0,0.00028219,2]
[314334327,1708192240282,-4036.34,0.00028219,2]
[314334329,1708192240292,-500.0,0.00028219,2]
[314334331,1708192240301,-3330.77,0.00028219,2]
[314334333,1708192240310,-500.0,0.00028219,2]
[314334335,1708192240320,-7257.13,0.00028219,2]
[314334337,1708192240330,-1166.28,0.00028219,2]
[314334339,1708192240339,-507.67,0.00028219,2]
[314334341,1708192240348,-1162.8,0.00028219,2]
[314334343,1708192240357,-1402.44,0.00028219,2]
[314334345,1708192240366,-843.28,0.00028219,2]
[314334347,1708192240375,-639.03,0.00028219,2]
[314334349,1708192240385,-624.83,0.00028219,2]
[314334352,1708192240394,-500.0,0.00028219,2]
[314334353,1708192240404,-5756.91,0.00028219,2]
[314334355,1708192240413,-524.53,0.00028219,2]
[314334357,1708192240422,-820.43,0.00028219,2]
[314334359,1708192240431,-906.16,0.00028219,2]
[314334361,1708192240440,-1050.23,0.00028219,2]
[314334363,1708192240449,-1280.88,0.00028493,2]
[314334365,1708192240458,-500.0,0.00028493,2]
[314334367,1708192240467,-751.69,0.00028493,2]
[314334369,1708192240476,-754.84,0.00028493,2]
[314334372,1708192240486,-500.0,0.00028493,2]
[314334376,1708192240495,-500.0,0.00028493,2]
[314334378,1708192240505,-626.1,0.00028493,2]
[314334380,1708192240514,-500.0,0.00028493,2]
[314334382,1708192240524,-500.0,0.00028493,2]
[314334384,1708192240533,-559.23,0.00028493,2]
[314334386,1708192240542,-5005.92,0.00028493,2]
[314334388,1708192240551,-6665.96,0.00028493,2]
[314334390,1708192240560,-4020.42,0.00028493,2]
[314334392,1708192240570,-1172.35,0.00028493,2]
[314334394,1708192240579,-500.0,0.00028493,2]
[314334395,1708192240588,-610.99,0.00028493,2]
[314334397,1708192240597,-500.0,0.00028493,2]
[314334399,1708192240606,-680.39,0.00028493,2]
[314334401,1708192240615,-578.0,0.00028493,2]
[314334403,1708192240624,-4036.34,0.00028493,2]
[314334405,1708192240633,-3330.77,0.00028493,2]
[314334407,1708192240643,-500.0,0.00028493,2]
[314334409,1708192240652,-7257.13,0.00028493,2]
[314334411,1708192240661,-1166.28,0.00028493,2]
[314334413,1708192240670,-507.67,0.00028493,2]
[314334415,1708192240679,-1162.8,0.00028493,2]
[314334417,1708192240688,-1402.44,0.00028493,2]
[314334419,1708192240698,-843.28,0.00028493,2]
[314334421,1708192240706,-639.03,0.00028493,2]
[314334423,1708192240715,-624.83,0.00028493,2]
[314334425,1708192240724,-500.0,0.00028493,2]
[314334428,1708192240734,-5756.91,0.00028493,2]
[314334430,1708192240743,-524.53,0.00028493,2]
[314334432,1708192240754,-820.43,0.00028493,2]
[314334434,1708192240763,-906.16,0.00028493,2]
[314334436,1708192240772,-1050.23,0.00028493,2]
[314334438,1708192240782,-300.0,0.00028532,2]
[314334440,1708192240791,-370.36,0.00028757,3]
[314334442,1708192240803,-1280.88,0.00028767,2]
[314334444,1708192240814,-500.0,0.00028767,2]
[314334446,1708192240823,-751.69,0.00028767,2]
[314334448,1708192240833,-754.84,0.00028767,2]
[314334450,1708192240841,-182.64307601,0.00028767,2]
[314334452,1708192240852,-500.0,0.00028767,2]
[314334454,1708192240861,-626.1,0.00028767,2]
[314334456,1708192240870,-500.0,0.00028767,2]
[314334458,1708192240879,-500.0,0.00028767,2]
[314334460,1708192240888,-559.23,0.00028767,2]
[314334461,1708192240897,-5005.92,0.00028767,2]
[314334463,1708192240906,-6665.96,0.00028767,2]
[314334465,1708192240915,-4020.42,0.00028767,2]
[314334467,1708192240924,-1172.35,0.00028767,2]
[314334470,1708192240934,-500.0,0.00028767,2]
[314334471,1708192240943,-610.99,0.00028767,2]
[314334473,1708192240952,-500.0,0.00028767,2]
[314334476,1708192240962,-680.39,0.00028767,2]
[314334477,1708192240971,-578.0,0.00028767,2]
[314334480,1708192240981,-4036.34,0.00028767,2]
[314334481,1708192240990,-3330.77,0.00028767,2]
[314334483,1708192240999,-500.0,0.00028767,2]
[314334485,1708192241008,-7257.13,0.00028767,2]
[314334487,1708192241017,-1166.28,0.00028767,2]
[314334489,1708192241027,-507.67,0.00028767,2]
[314334492,1708192241036,-1162.8,0.00028767,2]
[314334493,1708192241046,-1402.44,0.00028767,2]
[314334495,1708192241054,-843.28,0.00028767,2]
[314334497,1708192241064,-639.03,0.00028767,2]
[314334499,1708192241073,-624.83,0.00028767,2]
[314334501,1708192241082,-500.0,0.00028767,2]
[314334503,1708192241091,-5756.91,0.00028767,2]
[314334505,1708192241103,-524.53,0.00028767,2]
[314334507,1708192241112,-820.43,0.00028767,2]
[314334509,1708192241121,-906.16,0.00028767,2]
[314334511,1708192241130,-1050.23,0.00028767,2]
[314334513,1708192241139,-300.0,0.00028964,2]
[314334515,1708192241148,-1280.88,0.00029041,2]
[314334517,1708192241157,-500.0,0.00029041,2]
[314334519,1708192241166,-751.69,0.00029041,2]
[314334521,1708192241175,-754.84,0.00029041,2]
[314334523,1708192241184,-500.0,0.00029041,2]
[314334525,1708192241193,-626.1,0.00029041,2]
[314334527,1708192241203,-500.0,0.00029041,2]
[314334529,1708192241212,-500.0,0.00029041,2]
[314334531,1708192241221,-559.23,0.00029041,2]
[314334533,1708192241230,-5005.92,0.00029041,2]
[314334535,1708192241239,-6665.96,0.00029041,2]
[314334537,1708192241248,-4020.42,0.00029041,2]
[314334539,1708192241257,-1172.35,0.00029041,2]
[314334541,1708192241266,-500.0,0.00029041,2]
[314334543,1708192241275,-610.99,0.00029041,2]
[314334545,1708192241285,-500.0,0.00029041,2]
[314334547,1708192241294,-680.39,0.00029041,2]
[314334549,1708192241302,-578.0,0.00029041,2]
[314334551,1708192241311,-4036.34,0.00029041,2]
[314334553,1708192241321,-3330.77,0.00029041,2]
[314334555,1708192241330,-500.0,0.00029041,2]
[314334557,1708192241339,-7257.13,0.00029041,2]
[314334559,1708192241348,-1166.28,0.00029041,2]
[314334561,1708192241357,-507.67,0.00029041,2]
[314334563,1708192241366,-1162.8,0.00029041,2]
[314334565,1708192241375,-1402.44,0.00029041,2]
[314334567,1708192241384,-843.28,0.00029041,2]
[314334569,1708192241393,-639.03,0.00029041,2]
[314334571,1708192241401,-624.83,0.00029041,2]
[314334573,1708192241411,-500.0,0.00029041,2]
[314334575,1708192241419,-5756.91,0.00029041,2]
[314334577,1708192241428,-524.53,0.00029041,2]
[314334579,1708192241437,-820.43,0.00029041,2]
[314334581,1708192241446,-906.16,0.00029041,2]
[314334583,1708192241455,-1050.23,0.00029041,2]
[314334585,1708192241464,-160.24275126,0.00029315,3]
[314334587,1708192241474,-1280.88,0.00029315,2]
[314334589,1708192241483,-500.0,0.00029315,2]
[314334591,1708192241492,-751.69,0.00029315,2]
[314334593,1708192241502,-754.84,0.00029315,2]
[314334595,1708192241511,-500.0,0.00029315,2]
[314334597,1708192241520,-626.1,0.00029315,2]
[314334599,1708192241529,-500.0,0.00029315,2]
[314334601,1708192241538,-500.0,0.00029315,2]
[314334603,1708192241547,-559.23,0.00029315,2]
[314334605,1708192241556,-5005.92,0.00029315,2]
[314334607,1708192241566,-6665.96,0.00029315,2]
[314334609,1708192241577,-4020.42,0.00029315,2]
[314334611,1708192241586,-1172.35,0.00029315,2]
[314334613,1708192241595,-500.0,0.00029315,2]
[314334615,1708192241605,-610.99,0.00029315,2]
[314334617,1708192241614,-500.0,0.00029315,2]
[314334619,1708192241623,-680.39,0.00029315,2]
[314334621,1708192241632,-578.0,0.00029315,2]
[314334623,1708192241641,-4036.34,0.00029315,2]
[314334625,1708192241650,-3330.77,0.00029315,2]
[314334627,1708192241660,-500.0,0.00029315,2]
[314334629,1708192241669,-7257.13,0.00029315,2]
[314334631,1708192241678,-1166.28,0.00029315,2]
[314334633,1708192241688,-507.67,0.00029315,2]
[314334643,1708192241766,-1162.8,0.00029315,2]
[314334645,1708192241776,-1402.44,0.00029315,2]
[314334647,1708192241785,-843.28,0.00029315,2]
[314334649,1708192241795,-639.03,0.00029315,2]
[314334651,1708192241807,-624.83,0.00029315,2]
[314334653,1708192241817,-500.0,0.00029315,2]
[314334655,1708192241827,-5756.91,0.00029315,2]
[314334657,1708192241837,-524.53,0.00029315,2]
[314334659,1708192241848,-820.43,0.00029315,2]
[314334661,1708192241858,-906.16,0.00029315,2]
[314334663,1708192241868,-1050.23,0.00029315,2]
[314334665,1708192241879,-300.0,0.00029395,2]
[314334667,1708192241889,-1938.02221776,0.00029489,2]
[314334669,1708192241898,-264.10678063,0.00029588,2]
[314334671,1708192241907,-1280.88,0.00029589,2]
[314334673,1708192241916,-500.0,0.00029589,2]
[314334675,1708192241926,-751.69,0.00029589,2]
[314334677,1708192241935,-754.84,0.00029589,2]
[314334679,1708192241944,-500.0,0.00029589,2]
[314334681,1708192241953,-626.1,0.00029589,2]
[314334683,1708192241962,-500.0,0.00029589,2]
[314334685,1708192241972,-500.0,0.00029589,2]
[314334687,1708192241981,-559.23,0.00029589,2]
[314334689,1708192241990,-5005.92,0.00029589,2]
[314334691,1708192241999,-6665.96,0.00029589,2]
[314334693,1708192242009,-4020.42,0.00029589,2]
[314334695,1708192242018,-1172.35,0.00029589,2]
[314334697,1708192242028,-500.0,0.00029589,2]
[314334699,1708192242037,-610.99,0.00029589,2]
[314334700,1708192242046,-500.0,0.00029589,2]
[314334701,1708192242055,-680.39,0.00029589,2]
[314334702,1708192242064,-578.0,0.00029589,2]
[314334703,1708192242073,-4036.34,0.00029589,2]
[314334704,1708192242082,-3330.77,0.00029589,2]
[314334705,1708192242091,-500.0,0.00029589,2]
[314334706,1708192242100,-7257.13,0.00029589,2]
[314334707,1708192242109,-1166.28,0.00029589,2]
[314334708,1708192242118,-507.67,0.00029589,2]
[314334709,1708192242128,-1162.8,0.00029589,2]
[314334710,1708192242137,-1402.44,0.00029589,2]
[314334711,1708192242146,-843.28,0.00029589,2]
[314334712,1708192242155,-639.03,0.00029589,2]
[314334713,1708192242164,-624.83,0.00029589,2]
[314334714,1708192242173,-424.4656152,0.00029589,2]
[314334715,1708192242182,-5756.91,0.00029589,2]
[314334716,1708192242192,-524.53,0.00029589,2]
[314334718,1708192242201,-820.43,0.00029589,2]
[314334720,1708192242210,-906.16,0.00029589,2]
[314334722,1708192242219,-1050.23,0.00029589,2]
[314334724,1708192242228,-200.3193593,0.00029589,2]
[314334726,1708192242237,-1938.02221768,0.00029729,2]
[314334728,1708192242246,-300.0,0.00029826,2]
[314334729,1708192242255,-474.65454293,0.00029863,7]
[314334732,1708192242264,-1597.24528135,0.00029863,5]
[314334733,1708192242273,-214.94617414,0.00029863,5]
[314334735,1708192242282,-1280.88,0.00029863,2]
[314334737,1708192242291,-282.36869607,0.00029863,7]
[314334739,1708192242300,-500.0,0.00029863,2]
[314334741,1708192242309,-751.69,0.00029863,2]
[314334743,1708192242320,-754.84,0.00029863,2]
[314334745,1708192242329,-271.34267205,0.00029863,7]
[314334747,1708192242338,-500.0,0.00029863,2]
[314334749,1708192242347,-626.1,0.00029863,2]
[314334751,1708192242358,-500.0,0.00029863,2]
[314334753,1708192242368,-500.0,0.00029863,2]
[314334755,1708192242377,-559.23,0.00029863,2]
[314334757,1708192242385,-5005.92,0.00029863,2]
[314334759,1708192242395,-6665.96,0.00029863,2]
[314334761,1708192242404,-4020.42,0.00029863,2]
[314334764,1708192242414,-1172.35,0.00029863,2]
[314334765,1708192242423,-500.0,0.00029863,2]
[314334767,1708192242432,-610.99,0.00029863,2]
[314334769,1708192242441,-500.0,0.00029863,2]
[314334770,1708192242450,-680.39,0.00029863,2]
[314334771,1708192242459,-578.0,0.00029863,2]
[314334772,1708192242468,-4036.34,0.00029863,2]
[314334773,1708192242477,-3330.77,0.00029863,2]
[314334774,1708192242486,-500.0,0.00029863,2]
[314334775,1708192242495,-7257.13,0.00029863,2]
[314334776,1708192242504,-1166.28,0.00029863,2]
[314334777,1708192242513,-507.67,0.00029863,2]
[314334778,1708192242522,-1162.8,0.00029863,2]
[314334779,1708192242531,-1402.44,0.00029863,2]
[314334780,1708192242541,-843.28,0.00029863,2]
[314334781,1708192242550,-639.03,0.00029863,2]
[314334782,1708192242559,-624.83,0.00029863,2]
[314334783,1708192242570,-5756.91,0.00029863,2]
[314334784,1708192242579,-524.53,0.00029863,2]
[314334785,1708192242587,-820.43,0.00029863,2]
[314334786,1708192242596,-906.16,0.00029863,2]
[314334787,1708192242606,-1050.23,0.00029863,2]
[314334788,1708192242614,-1938.02221768,0.00029969,2]
[314334789,1708192242623,-198.8108005,0.00029988,2]
[314334790,1708192242633,-326.94939536,0.00029988,2]
[314334791,1708192242642,-155.00930056,0.00029988,2]
[314334792,1708192242651,-181.01915082,0.00029989,2]
[314334794,1708192242660,-7967.49,0.00029989,2]
[314334796,1708192242670,-7967.49,0.00029989,2]
[314334798,1708192242680,-7967.49,0.00029989,2]
[314334799,1708192242689,-7967.49,0.00029989,2]
[314334800,1708192242698,-7967.49,0.00029989,2]
[314334801,1708192242707,-7967.49,0.00029989,2]
[314334802,1708192242716,-7967.49,0.00029989,2]
[314334803,1708192242725,-7967.49,0.00029989,2]
[314334804,1708192242733,-7967.49,0.00029989,2]
[314334805,1708192242743,-7967.49,0.00029989,2]
[314334806,1708192242752,-667.454567,0.00029989,2]
[314334807,1708192242762,-667.454567,0.00029989,2]
[314334809,1708192242771,-500.0,0.00029989,2]
[314334811,1708192242780,-500.0,0.00029989,2]
[314334813,1708192242790,-186.79483224,0.00029989,2]
[314334815,1708192242802,-500.0,0.00029989,2]
[314334817,1708192242811,-223.29758661,0.00029989,2]
[314334819,1708192242821,-500.0,0.00029989,2]
[314334820,1708192242830,-500.0,0.00029989,2]
[314334821,1708192242844,-500.0,0.00029989,2]
[314334822,1708192242853,-500.0,0.00029989,2]
[314334824,1708192242862,-291.08381287,0.00029989,2]
[314334825,1708192242872,-500.0,0.00029989,2]
[314334826,1708192242882,-221.07040186,0.00029989,2]
[314334827,1708192242891,-134017.31283979,0.0002999,2]
[314334829,1708192242969,-55811.68518247,0.0002999,2]
[314334830,1708192242978,-227.371725,0.0002999,2]
[314334831,1708192242987,-227.371725,0.0002999,2]
[314334832,1708192242996,-151.0,0.0002999,2]
[314334833,1708192243005,-151.0,0.0002999,2]
[314334834,1708192243015,-151.0,0.0002999,2]
[314334836,1708192243024,-500.0,0.0002999,2]
[314334838,1708192243033,-667.454567,0.0002999,2]
[314334839,1708192243043,-667.454567,0.0002999,2]
[314334840,1708192243052,-7011.48620392,0.0003,10]
[314334841,1708192243061,-500.61747204,0.0003,2]
[314334842,1708192243070,-167.54081577,0.0003,2]
[314334843,1708192243079,-376.51520256,0.0003,10]
[314334844,1708192243088,-7420.4562088,0.0003,2]
[314334845,1708192243097,-2202.62269777,0.0003,2]
[314334846,1708192243106,-2500.0,0.0003,2]
[314334847,1708192243115,-10000.0,0.0003,15]
[314334848,1708192243124,-13619.4971064,0.0003,2]
[314334849,1708192243134,-1002.0,0.0003,7]
[314334850,1708192243143,-2276.04979207,0.0003,14]
[314334851,1708192243153,-180.10226708,0.0003,2]
[314334852,1708192243162,-3573.01459686,0.0003,2]
[314334853,1708192243171,-2082.57266496,0.0003,2]
[314334854,1708192243182,-11853.06989729,0.0003,7]
[314334855,1708192243193,-648.82573306,0.0003,14]
[314334856,1708192243203,-2656.60048963,0.0003,10]
[314334857,1708192243212,-702.44127963,0.0003,2]
[314334858,1708192243224,-224230.85690103,0.0003,2]
[314334859,1708192243233,-11593.0020572,0.0003,2]
[314334860,1708192243242,-1000.0,0.0003,30]
[314334861,1708192243251,-2746.41421811,0.0003,3]
[314334862,1708192243260,-68652.57209212,0.0003,2]
[314334863,1708192243269,-2070.08235872,0.0003,2]
[314334864,1708192243279,-1500.0,0.0003,2]
[314334865,1708192243288,-17033.99241744,0.0003,2]
[314334866,1708192243297,-155.0,0.0003,2]
[314334867,1708192243306,-227.371725,0.0003,2]
[314334868,1708192243315,-227.371725,0.0003,2]
[314334869,1708192243324,-151.0,0.0003,2]
[314334870,1708192243333,-151.0,0.0003,2]
[314334871,1708192243342,-151.0,0.0003,2]
[314334872,1708192243352,-256.0,0.0003,2]
[314334873,1708192243361,-667.454567,0.0003,2]
[314334874,1708192243370,-667.454567,0.0003,2]
[314334875,1708192243379,-198.52094622,0.0003013,2]
[314334876,1708192243388,-1280.88,0.00030136,2]
[314334877,1708192243397,-220.0,0.00030136,2]
[314334878,1708192243406,-220.0,0.00030136,2]
[314334879,1708192243415,-220.0,0.00030136,2]
[314334880,1708192243425,-220.0,0.00030136,2]
[314334881,1708192243434,-183.9294762,0.00030136,2]
[314334882,1708192243443,-500.0,0.00030136,2]
[314334883,1708192243452,-751.69,0.00030136,2]
[314334884,1708192243461,-754.84,0.00030136,2]
[314334886,1708192243470,-227.371725,0.00030136,2]
[314334895,1708192243548,-227.371725,0.00030136,2]
[314334897,1708192243558,-151.0,0.00030136,2]
[314334899,1708192243567,-500.0,0.00030136,2]
[314334901,1708192243576,-626.1,0.00030136,2]
[314334903,1708192243585,-500.0,0.00030136,2]
[314334905,1708192243594,-500.0,0.00030136,2]
[314334906,1708192243603,-559.23,0.00030136,2]
[314334908,1708192243612,-151.0,0.00030136,2]
[314334910,1708192243621,-5005.92,0.00030136,2]
[314334911,1708192243630,-6665.96,0.00030136,2]
[314334912,1708192243640,-4020.42,0.00030136,2]
[314334913,1708192243649,-1172.35,0.00030136,2]
[314334914,1708192243658,-500.0,0.00030136,2]
[314334915,1708192243667,-610.99,0.00030136,2]
[314334916,1708192243676,-283.46386381,0.00030136,2]
[314334917,1708192243686,-680.39,0.00030136,2]
[314334918,1708192243695,-151.0,0.00030136,2]
[314334919,1708192243704,-578.0,0.00030136,2]
[314334920,1708192243712,-4036.34,0.00030136,2]
[314334921,1708192243721,-3330.77,0.00030136,2]
[314334922,1708192243730,-500.0,0.00030136,2]
[314334923,1708192243739,-7257.13,0.00030136,2]
[314334924,1708192243748,-1166.28,0.00030136,2]
[314334925,1708192243757,-507.67,0.00030136,2]
[314334926,1708192243767,-1162.8,0.00030136,2]
[314334927,1708192243776,-1402.44,0.00030136,2]
[314334928,1708192243786,-843.28,0.00030136,2]
[314334929,1708192243795,-639.03,0.00030136,2]
[314334930,1708192243806,-624.83,0.00030136,2]
[314334931,1708192243816,-667.454567,0.00030136,2]
[314334932,1708192243825,-667.454567,0.00030136,2]
[314334933,1708192243834,-5756.91,0.00030136,2]
[314334934,1708192243843,-524.53,0.00030136,2]
[314334935,1708192243852,-820.43,0.00030136,2]
[314334936,1708192243862,-906.16,0.00030136,2]
[314334937,1708192243873,-1050.23,0.00030136,2]
[314334938,1708192243883,-155.0,0.00030137,2]
[314334939,1708192243893,-155.00620025,0.000302,3]
[314334940,1708192243903,-1938.02221768,0.00030209,2]
[314334941,1708192243912,-300.0,0.00030257,2]
[314334942,1708192243921,-1280.88,0.0003041,2]
[314334943,1708192243931,-151.27107923,0.0003041,2]
[314334944,1708192243941,-751.69,0.0003041,2]
[314334945,1708192243950,-754.84,0.0003041,2]
[314334946,1708192243959,-500.0,0.0003041,2]
[314334947,1708192243969,-626.1,0.0003041,2]
[314334948,1708192243978,-500.0,0.0003041,2]
[314334949,1708192243987,-500.0,0.0003041,2]
[314334950,1708192243997,-559.23,0.0003041,2]
[314334951,1708192244006,-5005.92,0.0003041,2]
[314334952,1708192244015,-6665.96,0.0003041,2]
[314334953,1708192244025,-4020.42,0.0003041,2]
[314334954,1708192244035,-1172.35,0.0003041,2]
[314334955,1708192244043,-500.0,0.0003041,2]
[314334956,1708192244054,-610.99,0.0003041,2]
[314334957,1708192244065,-680.39,0.0003041,2]
[314334958,1708192244076,-578.0,0.0003041,2]
[314334959,1708192244086,-4036.34,0.0003041,2]
[314334960,1708192244095,-3330.77,0.0003041,2]
[314334961,1708192244106,-500.0,0.0003041,2]
[314334962,1708192244116,-7257.13,0.0003041,2]
[314334963,1708192244126,-1166.28,0.0003041,2]
[314334964,1708192244136,-507.67,0.0003041,2]
[314334965,1708192244145,-1162.8,0.0003041,2]
[314334966,1708192244155,-1402.44,0.0003041,2]
[314334967,1708192244165,-843.28,0.0003041,2]
[314334968,1708192244176,-639.03,0.0003041,2]
[314334969,1708192244185,-624.83,0.0003041,2]
[314334970,1708192244194,-4597.87530303,0.0003041,2]
[314334971,1708192244230,-774.57842176,0.0003041,2]
[314334972,1708192244244,-384.45627521,0.0003041,2]
[314334973,1708192244254,-178.52485181,0.0003041,2]
[314334974,1708192244271,-346.00514819,0.0003041,2]
[314334975,1708192244281,-820.43,0.0003041,2]
[314334976,1708192244295,-906.16,0.0003041,2]
[314334977,1708192244304,-1050.23,0.0003041,2]